bitfinex/quotes_SOLUSD_20251009
["timestamp","ask_amount","ask_price","bid_price","bid_amount"]
[1759983652708,1e-08,226.48,226.47,54.49052559]
[1759983652935,1e-08,226.48,226.47,15.29207109]
[1759983653140,1e-08,226.48,226.47,47.89976199]
[1759983653631,1e-08,226.48,226.47,16.93976199]
[1759983653826,1e-08,226.48,226.47,47.89976199]
[1759983654519,1e-08,226.48,226.47,16.93976199]
[1759983654824,1e-08,226.48,226.47,24.20052559]
[1759983655006,1e-08,226.48,226.47,55.16052559]
[1759983655933,1e-08,226.48,226.47,52.06606131]
[1759983656306,1e-08,226.48,226.47,21.10606131]
[1759983656511,1e-08,226.48,226.47,52.06606131]
[1759983656939,1e-08,226.48,226.47,21.10606131]
[1759983657227,1e-08,226.48,226.47,52.06606131]
[1759983657526,1e-08,226.48,226.47,21.10606131]
[1759983657713,1e-08,226.48,226.47,52.06606131]
[1759983658034,1e-08,226.48,226.47,53.83296282]
[1759983658419,1e-08,226.48,226.47,22.87296282]
[1759983658918,1e-08,226.48,226.47,53.83296282]
[1759983661231,1e-08,226.48,226.47,48.8240662]
[1759983661432,1e-08,226.49,226.48,16.02046543]
[1759983661610,1e-08,226.49,226.48,47.65046543]
[1759983662626,0.2,226.56,226.52,31.67647521]
[1759983662820,0.2,226.56,226.55,34.24847032]
[1759983663134,0.2,226.56,226.55,69.62250695]
[1759983663513,0.2,226.56,226.55,38.66250695]
[1759983663813,0.2,226.56,226.55,69.62250695]
[1759983664322,0.2,226.56,226.55,70.29250695]
[1759983664543,1e-08,226.56,226.55,70.29250695]
[1759983665438,1e-08,226.56,226.55,72.05862832]
[1759983665729,1e-08,226.56,226.55,98.60862832]
[1759983666828,1e-08,226.56,226.55,67.64862832]
[1759983667014,1e-08,226.56,226.55,69.62250695]
[1759983667214,0.72000001,226.56,226.55,38.66250695]
[1759983667412,0.72000001,226.56,226.55,36.09051184]
[1759983667620,0.72000001,226.56,226.55,35.37403663]
[1759983668042,0.72000001,226.56,226.55,15.29051184]
[1759983668229,0.72000001,226.56,226.55,46.25051184]
[1759983668734,0.72000001,226.56,226.55,41.83647521]
[1759983669349,0.72000001,226.56,226.55,30.96]
[1759983669524,0.72000001,226.56,226.54,10.87647521]
[1759983669716,0.72,226.55,226.54,41.83647521]
[1759983671342,0.72,226.55,226.54,15.29070669]
[1759983671639,0.72,226.55,226.53,20.8]
[1759983671854,0.72,226.55,226.45,3.49659132]
[1759983671855,0.72,226.54,226.45,3.49659132]
[1759983672149,2.57199511,226.51,226.45,3.49659132]
[1759983672312,2.57199511,226.51,226.47,20.8]
[1759983672642,0.72,226.5,226.45,34.49659132]
[1759983672822,0.72,226.49,226.45,31.0]
[1759983673144,0.72,226.48,226.45,20.8]
[1759983673319,0.72,226.47,226.43,10.87647521]
[1759983673523,0.72,226.46,226.43,10.87647521]
[1759983673744,0.72,226.45,226.43,10.87647521]
[1759983673921,0.72,226.44,226.43,10.87647521]
[1759983674123,0.72,226.44,226.42,30.98]
[1759983674440,0.72,226.43,226.41,31.0]
[1759983674642,0.72,226.42,226.41,62.67647521]
[1759983675118,0.72,226.42,226.41,41.87647521]
[1759983675319,0.72,226.44,226.41,41.87647521]
[1759983675539,2.57199511,226.48,226.41,46.29322535]
[1759983675741,2.57199511,226.48,226.41,67.09322535]
[1759983675935,0.72,226.47,226.41,67.09322535]
[1759983676137,0.72,226.46,226.41,67.09322535]
[1759983676354,0.72,226.45,226.41,67.09322535]
[1759983676645,0.72,226.48,226.44,20.8]
[1759983676849,0.72,226.48,226.46,2.57199511]
[1759983677732,0.72,226.51,226.47,41.89647521]
[1759983677914,0.72,226.53,226.49,2.57199511]
[1759983678122,0.72,226.52,226.5,31.02]
[1759983678738,0.72,226.55,226.51,13.44847032]
[1759983678950,1e-08,226.56,226.53,10.87647521]
[1759983679132,1e-08,226.56,226.53,13.44847032]
[1759983679441,1e-08,226.56,226.55,34.24847032]
[1759983679653,1e-08,226.56,226.55,65.28847032]
[1759983679925,1e-08,226.56,226.55,69.70250695]
[1759983681119,0.68000001,226.56,226.55,31.67647521]
[1759983681323,1e-08,226.56,226.55,67.15051184]
[1759983681927,1e-08,226.56,226.55,67.85051184]
[1759983682125,1e-08,226.56,226.55,67.15051184]
[1759983682869,1e-08,226.56,226.55,46.35051184]
[1759983683756,1e-08,226.56,226.55,47.05051184]
[1759983688862,1e-08,226.56,226.55,47.01051184]
[1759983689068,1e-08,226.56,226.55,49.58250695]
[1759983689655,1e-08,226.56,226.55,17.86250695]
[1759983689979,1e-08,226.56,226.55,46.31051184]
[1759983690178,1e-08,226.56,226.55,48.88250695]
[1759983690570,1e-08,226.56,226.55,17.86250695]
[1759983690768,1e-08,226.56,226.55,48.86250695]
[1759983691565,1e-08,226.56,226.55,46.99051184]
[1759983691764,1e-08,226.56,226.55,17.86250695]
[1759983691963,1e-08,226.56,226.55,48.86250695]
[1759983693602,0.68000001,226.56,226.55,15.29051184]
[1759983694072,0.68000001,226.56,226.55,46.31051184]
[1759983694262,0.68000001,226.56,226.55,48.88250695]
[1759983695493,0.68000001,226.56,226.55,17.86250695]
[1759983695661,1e-08,226.56,226.55,38.66250695]
[1759983695861,1e-08,226.56,226.55,69.66250695]
[1759983696275,1e-08,226.56,226.55,38.66250695]
[1759983696483,1e-08,226.56,226.55,69.66250695]
[1759983697497,1e-08,226.56,226.55,38.66250695]
[1759983697682,1e-08,226.56,226.55,69.66250695]
[1759983699081,1e-08,226.56,226.55,70.35250695]
[1759983699398,1e-08,226.56,226.55,49.55250695]
[1759983699600,1e-08,226.56,226.55,18.55250695]
[1759983699800,1e-08,226.56,226.55,49.55250695]
[1759983705609,1e-08,226.56,226.55,49.53250695]
[1759983707718,1e-08,226.56,226.55,39.35250695]
[1759983708184,1e-08,226.56,226.55,70.31250695]
[1759983708890,1e-08,226.56,226.55,39.35250695]
[1759983709092,1e-08,226.56,226.55,49.51250695]
[1759983709794,1e-08,226.56,226.55,18.55250695]
[1759983709997,1e-08,226.56,226.55,49.51250695]
[1759983712202,1e-08,226.56,226.55,18.55250695]
[1759983712518,1e-08,226.56,226.55,51.2787063]
[1759983712708,1e-08,226.56,226.55,49.51250695]
[1759983713114,1e-08,226.56,226.55,18.55250695]
[1759983713317,1e-08,226.56,226.55,49.51250695]
[1759983714092,1e-08,226.56,226.55,48.82250695]
[1759983714323,1e-08,226.56,226.55,49.53250695]
[1759983715822,1e-08,226.56,226.55,39.37250695]
[1759983716118,1e-08,226.56,226.55,49.53250695]
[1759983716714,1e-08,226.56,226.55,48.82250695]
[1759983717526,1e-08,226.56,226.55,49.53250695]
[1759983717899,1e-08,226.56,226.55,48.60581592]
[1759983718925,1e-08,226.56,226.55,47.89581592]
[1759983719124,1e-08,226.56,226.55,17.64581592]
[1759983719323,1e-08,226.56,226.55,48.60581592]
[1759983727231,1e-08,226.56,226.55,47.89581592]
[1759983727536,1e-08,226.56,226.55,48.56581592]
[1759983728655,1e-08,226.56,226.55,15.29051184]
[1759983728814,0.70000001,226.56,226.55,47.89581592]
[1759983729133,1e-08,226.56,226.55,47.89581592]
[1759983730120,1e-08,226.56,226.55,48.56581592]
[1759983731237,1e-08,226.56,226.55,47.89581592]
[1759983732739,1e-08,226.56,226.55,48.56581592]
[1759983735814,1e-08,226.56,226.55,47.89581592]
[1759983736040,1e-08,226.56,226.55,48.56581592]
[1759983736448,1e-08,226.56,226.55,16.93581592]
[1759983736744,1e-08,226.56,226.55,47.89581592]
[1759983737248,1e-08,226.56,226.55,48.56581592]
[1759983737621,1e-08,226.56,226.55,38.40581592]
[1759983737821,1e-08,226.56,226.55,48.56581592]
[1759983738524,0.7,226.62,226.61,20.8]
[1759983738726,0.7,226.62,226.61,32.60530408]
[1759983739140,0.2,226.65,226.61,32.60530408]
[1759983739141,0.2,226.65,226.64,20.8]
[1759983739446,0.2,226.65,226.64,64.28177929]
[1759983739742,0.9,226.65,226.64,68.69406308]
[1759983740118,0.2,226.65,226.64,68.69406308]
[1759983740318,0.9,226.65,226.64,37.73406308]
[1759983740520,0.2,226.65,226.64,69.36406308]
[1759983740731,0.9,226.65,226.64,25.21228379]
[1759983740922,0.9,226.65,226.64,6.05758787]
[1759983741131,0.9,226.65,226.64,37.01758787]
[1759983741443,0.9,226.65,226.64,57.81758787]
[1759983743143,0.9,226.65,226.64,68.69406308]
[1759983743623,0.9,226.65,226.64,37.73406308]
[1759983743824,0.9,226.65,226.64,68.69406308]
[1759983744244,0.9,226.65,226.64,37.73406308]
[1759983744433,0.9,226.65,226.64,68.69406308]
[1759983745324,0.2,226.65,226.64,68.69406308]
[1759983746618,0.2,226.65,226.64,17.60406308]
[1759983746830,0.2,226.65,226.64,67.718759]
[1759983747038,0.2,226.65,226.64,69.36406308]
[1759983747240,0.2,226.68,226.67,20.8]
[1759983747435,0.2,226.68,226.67,64.26177929]
[1759983747627,0.2,226.68,226.67,64.93177929]
[1759983748125,0.2,226.68,226.67,33.99177929]
[1759983748332,0.2,226.68,226.67,64.93177929]
[1759983749225,0.2,226.68,226.67,69.34347911]
[1759983749840,0.2,226.68,226.67,71.10882103]
[1759983750436,0.2,226.68,226.67,72.75412511]
[1759983750639,1e-08,226.68,226.67,72.75412511]
[1759983750952,0.1,226.71,226.7,31.67647521]
[1759983751142,0.1,226.71,226.7,65.90708337]
[1759983751334,0.1,226.71,226.7,69.3428953]
[1759983752339,0.1,226.71,226.7,70.98819938]
[1759983752857,0.1,226.71,226.7,75.92411162]
[1759983754254,0.1,226.71,226.7,77.68929773]
[1759983755666,1e-08,226.71,226.7,77.68929773]
[1759983756450,0.1,226.79,226.78,20.8]
[1759983756640,0.1,226.79,226.78,51.74]
[1759983756960,0.79,226.79,226.78,51.74]
[1759983757552,0.79,226.79,226.78,56.14955992]
[1759983757753,0.79,226.79,226.78,20.8]
[1759983757957,0.79,226.79,226.78,51.74]
[1759983758457,0.79,226.79,226.78,53.38530408]
[1759983759457,0.79,226.79,226.78,57.794864]
[1759983759659,0.79,226.79,226.78,68.67133921]
[1759983760741,0.1,226.79,226.78,68.67133921]
[1759983762040,0.1,226.79,226.78,69.39133921]
[1759983763248,0.1,226.79,226.78,68.67133921]
[1759983763967,0.1,226.79,226.78,75.97255553]
[1759983764168,0.79,226.88,226.82,20.8]
[1759983764465,0.79,226.88,226.87,1.64530408]
[1759983764874,0.79,226.88,226.87,32.58530408]
[1759983766565,0.79,226.88,226.87,53.38530408]
[1759983766765,0.79,226.88,226.87,64.26177929]
[1759983767480,0.1,226.88,226.87,68.66958993]
[1759983767685,0.1,226.88,226.87,37.72958993]
[1759983767973,0.1,226.88,226.87,68.68958993]
[1759983768181,0.1,226.88,226.87,67.76428585]
[1759983768477,0.1,226.88,226.87,69.40958993]
[1759983769686,0.1,226.88,226.87,69.18958993]
[1759983770071,0.1,226.88,226.87,67.54428585]
[1759983770278,0.1,226.88,226.87,69.18958993]
[1759983771167,0.1,226.88,226.87,32.17647521]
[1759983771367,0.79,226.88,226.86,30.96]
[1759983771575,0.1,226.88,226.87,30.96]
[1759983772273,0.79,226.88,226.87,51.76]
[1759983773584,0.79,226.88,226.87,51.74]
[1759983773991,0.79,226.88,226.87,67.02428585]
[1759983774496,0.1,226.88,226.87,67.02428585]
[1759983776692,0.1,226.88,226.87,36.08428585]
[1759983776999,0.1,226.88,226.87,67.02428585]
[1759983777696,0.1,226.88,226.87,48.58958993]
[1759983777997,0.1,226.88,226.87,49.50838551]
[1759983779801,0.1,226.88,226.87,16.00428585]
[1759983780000,0.1,226.88,226.87,48.78838551]
[1759983780400,0.1,226.88,226.87,49.50838551]
[1759983782292,0.1,226.88,226.87,18.56838551]
[1759983782491,0.1,226.88,226.87,49.54838551]
[1759983783802,0.1,226.88,226.87,46.98428585]
[1759983783999,0.1,226.88,226.87,17.84838551]
[1759983784305,0.1,226.88,226.87,49.52838551]
[1759983784808,0.1,226.88,226.87,52.09248517]
[1759983785714,0.1,226.88,226.87,52.11248517]
[1759983786291,0.1,226.88,226.87,52.09248517]
[1759983786905,1e-08,226.88,226.87,52.09248517]
[1759983788522,1e-08,226.88,226.87,52.11248517]
[1759983789235,1e-08,226.88,226.87,49.54838551]
[1759983789416,1e-08,226.88,226.87,52.11248517]
[1759983792253,1e-08,226.88,226.87,49.54838551]
[1759983792446,1e-08,226.88,226.87,51.37248517]
[1759983792605,1e-08,226.88,226.87,52.05248517]
[1759983795022,1e-08,226.88,226.87,78.52248517]
[1759983795536,4.40521036,227.08,226.87,111.58106497]
[1759983795724,0.68,226.99,226.98,13.44057487]
[1759983795931,0.68,226.99,226.98,44.42057487]
[1759983796431,0.68,226.99,226.98,13.44057487]
[1759983796616,0.68,226.99,226.98,48.82624937]
[1759983797642,6.96854669,227.05,226.99,10.87647521]
[1759983797935,0.68,227.01,227.0,30.98]
[1759983798136,0.68,227.01,227.0,33.54409966]
[1759983798339,0.68,227.01,227.0,54.36409966]
[1759983799135,0.68,227.01,227.0,69.64586121]
[1759983799336,0.68,227.01,227.0,67.08176155]
[1759983801034,0.68,227.01,227.0,62.67647521]
[1759983801216,0.68,227.01,227.0,31.67647521]
[1759983801538,0.68,227.01,227.0,62.65647521]
[1759983803646,0.68,227.01,227.0,20.8]
[1759983803847,3.24409966,227.01,226.95,31.67647521]
[1759983804050,3.24409966,227.0,226.95,31.67647521]
[1759983804265,0.68,226.99,226.96,30.98]
[1759983804433,0.68,226.98,226.96,30.98]
[1759983804638,0.68,226.97,226.96,30.98]
[1759983804851,0.68,226.97,226.96,20.8]
[1759983805051,0.68,226.97,226.96,51.78]
[1759983805726,0.68,226.97,226.94,13.44057487]
[1759983805924,0.68,226.96,226.95,41.83647521]
[1759983806148,0.68,226.96,226.95,30.96]
[1759983806743,0.68,226.96,226.95,51.76]
[1759983806931,0.68,226.96,226.95,20.8]
[1759983807332,0.68,226.96,226.95,51.76]
[1759983807528,0.68,226.96,226.94,20.8]
[1759983807747,0.68,226.96,226.95,30.96]
[1759983808958,0.68,226.96,226.94,20.8]
[1759983809155,0.68,226.95,226.94,20.8]
[1759983809357,0.68,226.95,226.94,51.76]
[1759983810355,0.68,226.95,226.94,20.8]
[1759983810538,0.68,226.95,226.94,51.76]
[1759983810739,0.68,226.95,226.94,20.8]
[1759983811536,0.68,226.95,226.93,20.8]
[1759983811737,0.68,226.98,226.94,33.50409966]
[1759983811937,0.68,226.98,226.95,2.56409966]
[1759983812152,0.68,226.98,226.95,33.52409966]
[1759983813965,5.0854164,227.0,226.95,33.52409966]
[1759983814262,0.68,226.99,226.95,34.20409966]
[1759983814459,4.4054164,227.0,226.96,2.56409966]
[1759983814774,5.08495941,227.02,226.97,3.24409966]
[1759983814965,0.68,227.04,226.98,3.24409966]
[1759983815269,0.68,227.03,226.99,2.56409966]
[1759983815560,0.68,227.03,226.99,3.24409966]
[1759983815750,4.40431622,227.05,226.99,3.24409966]
[1759983815751,5.09431622,227.05,227.0,2.56409966]
[1759983815958,0.69,227.04,227.0,2.56409966]
[1759983816646,4.40431622,227.05,227.0,34.19409966]
[1759983816966,5.09431622,227.05,227.0,34.19409966]
[1759983817141,4.40431622,227.05,227.0,33.52409966]
[1759983817343,0.69,227.04,227.0,33.52409966]
[1759983818044,5.09453812,227.04,227.0,33.52409966]
[1759983819451,0.69,227.04,227.0,33.52409966]
[1759983819968,0.69,227.04,227.0,30.96]
[1759983820363,4.40431622,227.05,227.0,31.63]
[1759983820576,4.40431622,227.05,227.0,33.52409966]
[1759983820873,4.40431622,227.05,227.01,0.67]
[1759983821075,5.09431622,227.05,227.01,0.67]
[1759983821248,4.40431622,227.05,227.0,30.96]
[1759983821452,5.09431622,227.05,227.0,34.19409966]
[1759983822366,0.69,227.05,227.01,2.56409966]
[1759983822567,5.09415499,227.06,227.01,3.23409966]
[1759983823573,5.09415499,227.06,227.02,0.66]
[1759983823879,5.09415499,227.06,227.01,2.56409966]
[1759983824165,0.69,227.06,227.02,10.87647521]
[1759983824371,3.26409966,227.09,227.03,0.66]
[1759983824560,0.7,227.09,227.03,0.66]
[1759983824742,3.26409966,227.09,227.03,0.66]
[1759983824952,3.26409966,227.09,227.02,14.10057487]
[1759983825178,4.40354044,227.09,227.03,0.66]
[1759983825359,0.7,227.08,227.02,41.79647521]
[1759983825680,0.7,227.08,227.03,34.14409966]
[1759983825681,5.10389797,227.08,227.03,34.14409966]
[1759983825973,5.10389797,227.08,227.03,33.48409966]
[1759983826175,4.40389797,227.08,227.04,0.66]
[1759983826771,5.10389797,227.08,227.03,33.48409966]
[1759983827074,2.56409966,227.04,226.98,7.6276401]
[1759983827259,3.26409966,227.03,226.98,6.9676401]
[1759983827573,0.7,227.02,226.97,30.94]
[1759983827747,0.7,227.02,226.98,0.66]
[1759983828975,4.40483287,227.03,226.97,33.50409966]
[1759983829165,7.66841588,227.05,226.99,3.22409966]
[1759983829558,7.66841588,227.05,226.99,34.14409966]
[1759983829759,7.66841588,227.05,226.99,0.66]
[1759983830061,7.66841588,227.05,226.99,31.6]
[1759983830267,7.66841588,227.05,226.99,34.16409966]
[1759983830660,5.10431622,227.05,226.99,34.16409966]
[1759983830864,7.66841588,227.05,226.99,34.16409966]
[1759983831972,7.66841588,227.05,226.99,34.14409966]
[1759983832147,2.56409966,227.04,226.96,20.8]
[1759983832351,0.7,227.03,226.98,2.56409966]
[1759983832555,0.7,227.02,226.97,54.94409966]
[1759983832755,0.7,227.01,226.95,0.66]
[1759983833050,3.26409966,227.01,226.95,54.94409966]
[1759983833356,0.7,227.01,226.96,0.66]
[1759983833551,3.26409966,227.01,226.97,0.66]
[1759983833757,0.7,227.0,226.95,21.46]
[1759983834079,5.10537388,227.0,226.96,0.66]
[1759983834752,2.56409966,227.02,226.96,3.22409966]
[1759983834951,6.96896927,227.03,226.97,3.22409966]
[1759983835153,3.26409966,227.02,226.96,3.22409966]
[1759983835870,3.26409966,227.02,226.97,0.66]
[1759983836063,6.96908582,227.02,226.98,0.66]
[1759983836459,2.56409966,227.02,226.98,0.66]
[1759983836980,2.56409966,226.99,226.94,21.46]
[1759983837196,3.26409966,226.99,226.94,52.38]
[1759983837475,2.56409966,226.99,226.95,0.66]
[1759983837679,0.7,226.99,226.95,0.66]
[1759983838573,7.66964084,226.99,226.94,20.8]
[1759983838778,2.56409966,226.98,226.94,0.66]
[1759983839157,2.56409966,226.96,226.91,21.46]
[1759983839365,3.26409966,226.96,226.91,21.46]
[1759983839562,3.26409966,226.96,226.91,20.8]
[1759983839773,0.7,226.96,226.92,0.66]
[1759983840301,6.74712918,226.96,226.9,20.8]
[1759983840597,1.6408849,226.92,226.86,1.6408849]
[1759983840757,1.6408849,226.92,226.86,2.3008849]
[1759983841279,1.6408849,226.9,226.85,51.72]
[1759983841490,1.6408849,226.89,226.85,51.72]
[1759983841664,1.6408849,226.89,226.85,52.38]
[1759983841862,1.6408849,226.89,226.85,31.58]
[1759983842059,2.3408849,226.9,226.85,51.72]
[1759983842289,2.3408849,226.9,226.86,0.66]
[1759983842493,6.04805106,226.91,226.86,0.66]
[1759983842662,6.74805106,226.91,226.86,0.66]
[1759983843789,2.3408849,226.9,226.85,51.72]
[1759983843986,1.6408849,226.9,226.85,51.72]
[1759983844183,6.04805106,226.91,226.86,0.66]
[1759983844674,0.7,226.9,226.86,0.66]
[1759983845191,1.6408849,226.88,226.81,2.3008849]
[1759983845393,1.6408849,226.88,226.82,0.66]
[1759983845591,6.04864183,226.88,226.82,2.3008849]
[1759983845897,15.18469062,227.04,226.82,2.3008849]
[1759983845898,1.6408849,226.94,226.87,1.6408849]
[1759983846106,4.40621795,226.96,226.9,1.6408849]
[1759983846392,4.40621795,226.96,226.91,0.69]
[1759983846393,15.42380201,226.96,226.91,0.69]
[1759983846604,4.40621795,226.96,226.9,1.6408849]
[1759983846781,4.40621795,226.96,226.92,0.69]
[1759983847186,0.7,227.0,226.93,2.3308849]
[1759983847473,6.74636531,226.99,226.93,20.8]
[1759983847672,1.6408849,226.95,226.9,30.94]
[1759983847882,1.6408849,226.94,226.9,30.94]
[1759983848078,2.3408849,226.95,226.9,31.63]
[1759983848997,6.74721299,226.95,226.9,31.63]
[1759983849199,6.04721299,226.95,226.9,30.94]
[1759983849386,4.40632809,226.95,226.91,0.69]
[1759983850000,1.6408849,226.99,226.92,0.69]
[1759983850200,1.6408849,226.99,226.93,20.8]
[1759983850409,4.40632809,227.0,226.94,0.69]
[1759983850577,6.04597718,227.01,226.94,0.69]
[1759983851280,6.04597718,227.01,226.94,5.09642257]
[1759983851581,6.04597718,227.01,226.95,21.49]
[1759983851891,1.6408849,226.99,226.95,20.8]
[1759983852112,1.6408849,226.97,226.95,20.8]
[1759983852299,2.3408849,226.97,226.92,0.69]
[1759983852605,2.3408849,226.97,226.9,56.14704502]
[1759983852606,1.6408849,226.97,226.93,0.69]
[1759983852976,2.3408849,226.97,226.9,56.14704502]
[1759983853208,4.40606274,226.96,226.91,0.69]
[1759983853382,4.40606274,226.96,226.92,0.69]
[1759983853779,0.7,226.95,226.9,51.74]
[1759983854000,2.3408849,226.95,226.91,0.69]
[1759983854204,0.7,226.94,226.9,51.74]
[1759983854413,1.6408849,226.95,226.9,21.49]
[1759983854581,2.3408849,226.95,226.9,21.49]
[1759983855611,6.74720019,226.95,226.9,21.49]
[1759983857179,5.10631529,226.95,226.9,21.49]
[1759983857508,6.74720019,226.95,226.9,21.49]
[1759983858209,5.10631529,226.95,226.9,21.49]
[1759983858389,6.74720019,226.95,226.9,21.49]
[1759983858589,6.74720019,226.95,226.9,20.8]
[1759983858901,1.6408849,226.93,226.88,0.69]
[1759983859101,1.6408849,226.89,226.85,5.09819814]
[1759983859317,1.6408849,226.9,226.86,0.69]
[1759983859490,1.6408849,226.9,226.88,20.8]
[1759983860004,4.40631529,226.94,226.89,0.69]
[1759983860206,140.84697511,226.96,226.89,0.69]
[1759983860694,139.20609021,226.96,226.9,20.8]
[1759983860896,139.20609021,226.96,226.91,0.69]
[1759983861199,139.20609021,226.96,226.92,0.69]
[1759983861421,134.8,226.96,226.93,0.69]
[1759983862209,139.20608098,226.96,226.93,0.69]
[1759983862784,134.8,226.96,226.94,0.69]
[1759983863014,4.40586362,226.98,226.9,25.20715925]
[1759983863015,6.04685418,226.97,226.92,0.69]
[1759983863228,6.04685418,226.97,226.93,0.69]
[1759983863908,6.04685418,226.97,226.94,0.69]
[1759983864209,13.23072173,227.0,226.94,2.3308849]
[1759983864419,136.4408849,227.03,226.95,0.69]
[1759983864609,140.84560241,227.03,226.95,0.69]
[1759983864920,140.84560241,227.03,226.97,20.8]
[1759983865092,139.20471751,227.03,226.98,0.69]
[1759983865296,134.8,227.03,226.99,0.69]
[1759983866314,134.8,227.03,226.99,10.87647521]
[1759983866494,134.8,227.03,227.0,0.69]
[1759983866788,1.6408849,227.04,227.0,0.69]
[1759983866984,1.6408849,227.04,227.01,0.69]
[1759983867188,0.7,227.08,227.02,0.69]
[1759983867410,1.6408849,227.06,227.02,0.69]
[1759983867589,2.3408849,227.06,227.0,0.69]
[1759983867798,5.10373436,227.08,227.0,0.69]
[1759983868103,1.6408849,227.06,227.0,0.69]
[1759983868308,6.04510693,227.06,227.0,0.69]
[1759983868816,6.04510693,227.06,227.0,5.09528186]
[1759983869015,6.04510693,227.06,227.01,0.69]
[1759983869210,6.04510693,227.06,227.0,4.40528186]
[1759983869417,6.04510693,227.06,227.02,0.69]
[1759983869711,6.74510693,227.06,227.0,4.40528186]
[1759983870922,1.6408849,227.04,227.0,4.40528186]
[1759983871217,0.7,227.09,227.01,0.69]
[1759983871420,1.6408849,227.07,227.01,0.69]
[1759983872319,1.6408849,227.07,227.0,10.87647521]
[1759983872320,1.6408849,227.05,227.0,10.87647521]
[1759983872506,0.7,227.04,227.0,10.87647521]
[1759983872694,1.6408849,227.05,227.0,11.56647521]
[1759983872894,1.6408849,227.05,227.01,0.69]
[1759983873096,1.6408849,227.05,227.0,15.28175072]
[1759983873097,1.6408849,227.07,227.03,20.8]
[1759983873313,1.6408849,227.07,227.03,21.49]
[1759983873721,1.6408849,227.05,227.03,20.8]
[1759983874840,0.7,227.04,227.03,20.8]
[1759983875026,5.10334654,227.1,227.03,21.49]
[1759983875228,1.6408849,227.09,227.03,21.49]
[1759983875617,5.10334654,227.1,227.03,21.49]
[1759983875834,1.6408849,227.08,227.03,21.49]
[1759983876134,4.4039283,227.07,227.03,21.52]
[1759983876428,5.1239283,227.07,227.03,21.52]
[1759983877204,6.0448132,227.07,227.03,21.52]
[1759983877623,6.0448132,227.07,227.03,20.8]
[1759983877909,6.7648132,227.07,227.02,20.8]
[1759983878125,0.72,227.06,227.03,20.8]
[1759983879118,6.0448132,227.07,227.03,20.8]
[1759983879637,6.7648132,227.07,227.03,20.8]
[1759983880507,4.50315414,227.11,227.04,63.41647521]
[1759983880717,5.22315414,227.11,227.04,34.03736011]
[1759983880912,1.6408849,227.1,227.04,63.47647521]
[1759983881142,5.22315414,227.11,227.05,0.72]
[1759983881341,1.6408849,227.1,227.05,0.72]
[1759983881533,1.6408849,227.1,227.06,0.72]
[1759983881735,6.86403904,227.11,227.06,0.72]
[1759983883123,0.1,227.11,227.06,0.72]
[1759983883442,0.1,227.11,227.07,0.66]
[1759983884026,4.50323701,227.11,227.07,0.66]
[1759983884529,6.14412191,227.11,227.07,0.66]
[1759983885437,5.22323701,227.11,227.05,31.06]
[1759983885736,1.6408849,227.1,227.05,31.72]
[1759983885920,1.6408849,227.1,227.06,0.66]
[1759983887112,4.40349707,227.1,227.06,0.66]
[1759983888338,0.1,227.11,227.05,37.10516675]
[1759983888539,0.1,227.11,227.07,0.66]
[1759983889347,4.50316002,227.11,227.07,0.66]
[1759983892644,4.50316002,227.11,227.05,37.08516675]
[1759983892645,0.1,227.11,227.05,31.04]
[1759983892830,0.1,227.11,227.07,1.6408849]
[1759983893221,0.1,227.11,227.08,0.66]
[1759983894147,0.1,227.11,227.09,0.66]
[1759983894361,0.1,227.11,227.1,22.4408849]
[1759983894650,0.1,227.11,227.1,65.03736011]
[1759983895930,0.1,227.11,227.1,69.44070665]
[1759983896647,0.1,227.11,227.1,38.38070665]